[Event "Titled Tuesday Blitz November 15 Early 2022"]
[White "Tymrakiewicz, Rafal"]
[Black "Shapiro, Daniel"]
[WhiteFideId "1108832"]
[BlackFideId "2001780"]
[WhiteElo "2138"]
[BlackElo "2318"]
[Result "1-0"]
[Round "09"]
[TimeControl "180+1"]
[Date "2022.11.16"]
[WhiteClock "0:00:09"]
[BlackClock "0:00:06"]

1. e4 {[%clk 0:02:59]}  e5 {[%clk 0:02:59]} 2. Nf3 {[%clk 0:02:57]}  Nc6 {[%clk 0:02:59]} 3. Bc4 {[%clk 0:02:57]}  Be7 {[%clk 0:02:58]} 4. b4 {[%clk 0:02:53]}  a6 {[%clk 0:02:55]} 5. Bb2 {[%clk 0:02:52]}  d6 {[%clk 0:02:54]} 6. a3 {[%clk 0:02:52]}  Nf6 {[%clk 0:02:51]} 7. Qe2 {[%clk 0:02:50]}  O-O {[%clk 0:02:42]} 8. h3 {[%clk 0:02:50]}  h6 {[%clk 0:02:37]} 9. O-O {[%clk 0:02:43]}  Be6 {[%clk 0:02:36]} 10. d3 {[%clk 0:02:41]}  Qd7 {[%clk 0:02:29]} 11. Bxe6 {[%clk 0:02:39]}  fxe6 {[%clk 0:02:28]} 12. Nfd2 {[%clk 0:02:25]}  Qe8 {[%clk 0:02:20]} 13. Nc3 {[%clk 0:02:07]}  Nd4 {[%clk 0:02:17]} 14. Qd1 {[%clk 0:02:07]}  Nh5 {[%clk 0:02:11]} 15. Ne2 {[%clk 0:02:05]}  Nc6 {[%clk 0:01:59]} 16. Nc4 {[%clk 0:01:52]}  Qg6 {[%clk 0:01:56]} 17. Bc1 {[%clk 0:01:44]}  Rf7 {[%clk 0:01:51]} 18. c3 {[%clk 0:01:41]}  Raf8 {[%clk 0:01:47]} 19. Ra2 {[%clk 0:01:42]}  Bg5 {[%clk 0:01:46]} 20. Be3 {[%clk 0:01:32]}  Nf4 {[%clk 0:01:43]} 21. Bxf4 {[%clk 0:01:29]}  exf4 {[%clk 0:01:27]} 22. f3 {[%clk 0:01:28]}  d5 {[%clk 0:01:19]} 23. Na5 {[%clk 0:01:24]}  Nd8 {[%clk 0:00:45]} 24. a4 {[%clk 0:01:03]}  Rd7 {[%clk 0:00:44]} 25. Rd2 {[%clk 0:01:01]}  Be7 {[%clk 0:00:35]} 26. Nb3 {[%clk 0:01:01]}  b6 {[%clk 0:00:33]} 27. a5 {[%clk 0:00:59]}  Nb7 {[%clk 0:00:30]} 28. axb6 {[%clk 0:00:59]}  cxb6 {[%clk 0:00:30]} 29. Ned4 {[%clk 0:00:50]}  Rc8 {[%clk 0:00:21]} 30. Qa1 {[%clk 0:00:48]}  a5 {[%clk 0:00:20]} 31. bxa5 {[%clk 0:00:43]}  Ra8 {[%clk 0:00:19]} 32. Qa4 {[%clk 0:00:38]}  Rdd8 {[%clk 0:00:13]} 33. Qc6 {[%clk 0:00:33]}  Nxa5 {[%clk 0:00:11]} 34. Nxa5 {[%clk 0:00:33]}  bxa5 {[%clk 0:00:11]} 35. Qxe6+ {[%clk 0:00:31]}  Qxe6 {[%clk 0:00:11]} 36. Nxe6 {[%clk 0:00:32]}  Rd6 {[%clk 0:00:11]} 37. Nc7 {[%clk 0:00:17]}  Rc8 {[%clk 0:00:10]} 38. Nxd5 {[%clk 0:00:17]}  Bd8 {[%clk 0:00:09]} 39. Rb2 {[%clk 0:00:14]}  Rdc6 {[%clk 0:00:08]} 40. Ra1 {[%clk 0:00:13]}  Kf7 {[%clk 0:00:07]} 41. d4 {[%clk 0:00:13]}  g5 {[%clk 0:00:07]} 42. Rb7+ {[%clk 0:00:11]}  Kg6 {[%clk 0:00:06]} 43. Kf1 {[%clk 0:00:11]}  Rc4 {[%clk 0:00:05]} 44. Ke2 {[%clk 0:00:11]}  a4 {[%clk 0:00:05]} 45. Kd3 {[%clk 0:00:11]}  Ra8 {[%clk 0:00:05]} 46. Kxc4 {[%clk 0:00:10]}  a3 {[%clk 0:00:05]} 47. Kd3 {[%clk 0:00:10]}  a2 {[%clk 0:00:06]} 48. Rb2 {[%clk 0:00:10]}  Bf6 {[%clk 0:00:06]} 49. Raxa2 {[%clk 0:00:10]}  Bg7 {[%clk 0:00:06]} 50. Rxa8 {[%clk 0:00:09]} 1-0


[Site "https://www.chess.com"]

[Event "Titled Tuesday Blitz November 15 Early 2022"]
[White "Vokhidov, Shamsiddin"]
[Black "Zemlyanskii, Ivan"]
[WhiteFideId "14204223"]
[BlackFideId "24249971"]
[WhiteElo "2619"]
[BlackElo "2107"]
[Result "0-1"]
[Round "09"]
[TimeControl "180+1"]
[Date "2022.11.15"]
[WhiteClock "0:00:15"]
[BlackClock "0:00:36"]

1. e4 {[%clk 0:03:00]}  c5 {[%clk 0:02:59]} 2. Nf3 {[%clk 0:03:01]}  d6 {[%clk 0:02:56]} 3. Nc3 {[%clk 0:03:00]}  Nf6 {[%clk 0:02:56]} 4. d4 {[%clk 0:03:00]}  cxd4 {[%clk 0:02:57]} 5. Nxd4 {[%clk 0:03:00]}  a6 {[%clk 0:02:57]} 6. Bd3 {[%clk 0:03:00]}  e5 {[%clk 0:02:51]} 7. Nde2 {[%clk 0:03:00]}  Nbd7 {[%clk 0:02:42]} 8. O-O {[%clk 0:02:50]}  b5 {[%clk 0:02:41]} 9. Ng3 {[%clk 0:02:43]}  Bb7 {[%clk 0:02:37]} 10. h3 {[%clk 0:02:24]}  g6 {[%clk 0:02:35]} 11. a3 {[%clk 0:02:20]}  Bg7 {[%clk 0:02:34]} 12. Be3 {[%clk 0:02:18]}  O-O {[%clk 0:02:31]} 13. Qd2 {[%clk 0:02:18]}  Re8 {[%clk 0:02:26]} 14. Rad1 {[%clk 0:02:16]}  Nc5 {[%clk 0:02:20]} 15. Rfe1 {[%clk 0:02:09]}  Qc7 {[%clk 0:02:17]} 16. Bh6 {[%clk 0:02:05]}  Ne6 {[%clk 0:02:09]} 17. Bxg7 {[%clk 0:02:01]}  Kxg7 {[%clk 0:02:06]} 18. Bf1 {[%clk 0:00:55]}  Red8 {[%clk 0:02:00]} 19. Rc1 {[%clk 0:00:46]}  Rac8 {[%clk 0:01:58]} 20. Red1 {[%clk 0:00:46]}  Qb6 {[%clk 0:01:55]} 21. Qe1 {[%clk 0:00:41]}  h5 {[%clk 0:01:50]} 22. h4 {[%clk 0:00:38]}  Nd4 {[%clk 0:01:19]} 23. Qd2 {[%clk 0:00:36]}  Ng4 {[%clk 0:01:07]} 24. Bd3 {[%clk 0:00:35]}  a5 {[%clk 0:00:46]} 25. Nd5 {[%clk 0:00:33]}  Bxd5 {[%clk 0:00:46]} 26. exd5 {[%clk 0:00:34]}  b4 {[%clk 0:00:42]} 27. axb4 {[%clk 0:00:32]}  axb4 {[%clk 0:00:43]} 28. Rb1 {[%clk 0:00:31]}  Qc5 {[%clk 0:00:37]} 29. Qg5 {[%clk 0:00:19]}  Nf3+ {[%clk 0:00:35]} 30. gxf3 {[%clk 0:00:15]}  Qxf2+ {[%clk 0:00:35]} 31. Kh1 {[%clk 0:00:15]}  Qh2# {[%clk 0:00:36]} 0-1


[Site "https://www.chess.com"]

[Event "Titled Tuesday Blitz November 15 Early 2022"]
[White "Willow, Jonah B"]
[Black "Fernandez Guillen, Ernesto J."]
[WhiteFideId "438804"]
[BlackFideId "3512428"]
[WhiteElo "2300"]
[BlackElo "2450"]
[Result "1-0"]
[Round "09"]
[TimeControl "180+1"]
[Date "2022.11.15"]
[WhiteClock "0:01:12"]
[BlackClock "0:00:01"]

1. e4 {[%clk 0:03:00]}  e5 {[%clk 0:02:59]} 2. Nf3 {[%clk 0:03:01]}  Nc6 {[%clk 0:02:59]} 3. Nc3 {[%clk 0:03:01]}  g6 {[%clk 0:02:51]} 4. d4 {[%clk 0:02:56]}  exd4 {[%clk 0:02:51]} 5. Nxd4 {[%clk 0:02:57]}  Bg7 {[%clk 0:02:52]} 6. Be3 {[%clk 0:02:54]}  Nge7 {[%clk 0:02:52]} 7. g3 {[%clk 0:02:51]}  O-O {[%clk 0:02:52]} 8. Bg2 {[%clk 0:02:50]}  d5 {[%clk 0:02:33]} 9. exd5 {[%clk 0:02:44]}  Nxd4 {[%clk 0:02:31]} 10. Bxd4 {[%clk 0:02:45]}  Bxd4 {[%clk 0:02:30]} 11. Qxd4 {[%clk 0:02:46]}  Nf5 {[%clk 0:02:30]} 12. Qd2 {[%clk 0:02:40]}  Re8+ {[%clk 0:02:30]} 13. Kf1 {[%clk 0:02:40]}  c5 {[%clk 0:02:21]} 14. h3 {[%clk 0:02:32]}  b6 {[%clk 0:02:13]} 15. Kg1 {[%clk 0:02:31]}  Nd4 {[%clk 0:02:11]} 16. Kh2 {[%clk 0:02:27]}  Bf5 {[%clk 0:02:08]} 17. Rac1 {[%clk 0:02:25]}  h5 {[%clk 0:01:51]} 18. Rhe1 {[%clk 0:02:21]}  Qf6 {[%clk 0:01:50]} 19. Rxe8+ {[%clk 0:02:20]}  Rxe8 {[%clk 0:01:51]} 20. h4 {[%clk 0:02:16]}  Kg7 {[%clk 0:01:41]} 21. a4 {[%clk 0:02:12]}  a6 {[%clk 0:01:39]} 22. f3 {[%clk 0:01:53]}  Qe5 {[%clk 0:01:22]} 23. Qf2 {[%clk 0:01:52]}  b5 {[%clk 0:01:15]} 24. axb5 {[%clk 0:01:53]}  axb5 {[%clk 0:01:15]} 25. Ne4 {[%clk 0:01:46]}  Qxd5 {[%clk 0:00:46]} 26. Rd1 {[%clk 0:01:46]}  Bxe4 {[%clk 0:00:41]} 27. fxe4 {[%clk 0:01:47]}  Qe5 {[%clk 0:00:34]} 28. c3 {[%clk 0:01:47]}  Ne6 {[%clk 0:00:33]} 29. Rd5 {[%clk 0:01:44]}  Qf6 {[%clk 0:00:33]} 30. Qd2 {[%clk 0:01:44]}  Rb8 {[%clk 0:00:21]} 31. e5 {[%clk 0:01:42]}  Qf5 {[%clk 0:00:20]} 32. Qe2 {[%clk 0:01:41]}  Qb1 {[%clk 0:00:15]} 33. Rd1 {[%clk 0:01:38]}  Qa2 {[%clk 0:00:11]} 34. Bd5 {[%clk 0:01:37]}  Qa6 {[%clk 0:00:12]} 35. Qf3 {[%clk 0:01:34]}  Re8 {[%clk 0:00:09]} 36. Qf6+ {[%clk 0:01:31]}  Kg8 {[%clk 0:00:09]} 37. Rf1 {[%clk 0:01:30]}  Qa7 {[%clk 0:00:08]} 38. g4 {[%clk 0:01:24]}  hxg4 {[%clk 0:00:08]} 39. h5 {[%clk 0:01:25]}  Qe7 {[%clk 0:00:07]} 40. hxg6 {[%clk 0:01:21]}  fxg6 {[%clk 0:00:02]} 41. Qxg6+ {[%clk 0:01:21]}  Kh8 {[%clk 0:00:02]} 42. Bxe6 {[%clk 0:01:12]}  Qxe6 {[%clk 0:00:02]} 43. Rf8+ {[%clk 0:01:11]}  Rxf8 {[%clk 0:00:01]} 44. Qxe6 {[%clk 0:01:12]} 1-0


[Site "https://www.chess.com"]

[Event "Titled Tuesday Blitz November 15 Early 2022"]
[White "Yu, Yangyi"]
[Black "Caruana, Fabiano"]
[WhiteFideId "8603820"]
[BlackFideId "2020009"]
[WhiteElo "2808"]
[BlackElo "2847"]
[Result "0-1"]
[Round "09"]
[TimeControl "180+1"]
[Date "2022.11.15"]
[WhiteClock "0:00:02"]
[BlackClock "0:00:20"]

1. e4 {[%clk 0:03:00]}  e5 {[%clk 0:02:59]} 2. Nf3 {[%clk 0:03:00]}  Nc6 {[%clk 0:03:00]} 3. Bb5 {[%clk 0:03:00]}  a6 {[%clk 0:02:59]} 4. Ba4 {[%clk 0:03:00]}  Nf6 {[%clk 0:02:59]} 5. O-O {[%clk 0:02:59]}  b5 {[%clk 0:02:59]} 6. Bb3 {[%clk 0:02:59]}  Bc5 {[%clk 0:02:59]} 7. c3 {[%clk 0:02:59]}  d6 {[%clk 0:02:59]} 8. d4 {[%clk 0:02:59]}  Bb6 {[%clk 0:03:00]} 9. Be3 {[%clk 0:02:59]}  O-O {[%clk 0:02:57]} 10. Nbd2 {[%clk 0:02:59]}  h6 {[%clk 0:02:57]} 11. h3 {[%clk 0:02:56]}  Re8 {[%clk 0:02:57]} 12. Bc2 {[%clk 0:02:56]}  Bd7 {[%clk 0:02:53]} 13. d5 {[%clk 0:02:40]}  Ne7 {[%clk 0:02:52]} 14. Bxb6 {[%clk 0:02:40]}  cxb6 {[%clk 0:02:52]} 15. a4 {[%clk 0:02:36]}  Ng6 {[%clk 0:02:51]} 16. axb5 {[%clk 0:02:33]}  Bxb5 {[%clk 0:02:52]} 17. c4 {[%clk 0:02:28]}  Bd7 {[%clk 0:02:52]} 18. Re1 {[%clk 0:02:25]}  a5 {[%clk 0:02:50]} 19. Bd3 {[%clk 0:02:13]}  Qc7 {[%clk 0:02:40]} 20. Bf1 {[%clk 0:02:12]}  Rec8 {[%clk 0:02:40]} 21. b3 {[%clk 0:02:08]}  Be8 {[%clk 0:02:40]} 22. Qb1 {[%clk 0:02:07]}  Nd7 {[%clk 0:02:40]} 23. h4 {[%clk 0:02:04]}  Nc5 {[%clk 0:02:39]} 24. g3 {[%clk 0:01:55]}  Bd7 {[%clk 0:02:39]} 25. b4 {[%clk 0:01:54]}  axb4 {[%clk 0:02:39]} 26. Qxb4 {[%clk 0:01:55]}  Ra5 {[%clk 0:02:28]} 27. Rab1 {[%clk 0:01:34]}  Rb8 {[%clk 0:02:26]} 28. Re3 {[%clk 0:01:23]}  Ne7 {[%clk 0:02:21]} 29. Ra3 {[%clk 0:01:19]}  Rba8 {[%clk 0:02:18]} 30. Re3 {[%clk 0:01:19]}  R8a6 {[%clk 0:02:17]} 31. Nb3 {[%clk 0:01:17]}  Ra4 {[%clk 0:02:14]} 32. Qe1 {[%clk 0:01:17]}  Ra3 {[%clk 0:01:54]} 33. Nfd2 {[%clk 0:01:06]}  Kh7 {[%clk 0:01:44]} 34. Nxc5 {[%clk 0:01:00]}  bxc5 {[%clk 0:01:44]} 35. Rxa3 {[%clk 0:00:58]}  Rxa3 {[%clk 0:01:45]} 36. Ra1 {[%clk 0:00:57]}  Qa5 {[%clk 0:01:42]} 37. Rxa3 {[%clk 0:00:57]}  Qxa3 {[%clk 0:01:43]} 38. Qb1 {[%clk 0:00:52]}  Qa7 {[%clk 0:01:32]} 39. Kh2 {[%clk 0:00:48]}  Ng8 {[%clk 0:01:32]} 40. Bh3 {[%clk 0:00:46]}  Nf6 {[%clk 0:01:31]} 41. Bxd7 {[%clk 0:00:45]}  Qxd7 {[%clk 0:01:32]} 42. Kg2 {[%clk 0:00:45]}  Qa7 {[%clk 0:01:31]} 43. Nf1 {[%clk 0:00:40]}  Qa4 {[%clk 0:01:29]} 44. Ne3 {[%clk 0:00:39]}  Qa5 {[%clk 0:01:19]} 45. Qb7 {[%clk 0:00:36]}  Qd2 {[%clk 0:00:56]} 46. Qxf7 {[%clk 0:00:34]}  Qd3 {[%clk 0:00:56]} 47. Qe6 {[%clk 0:00:29]}  Qxe4+ {[%clk 0:00:54]} 48. Kg1 {[%clk 0:00:28]}  Qf3 {[%clk 0:00:40]} 49. Qf5+ {[%clk 0:00:18]}  Qxf5 {[%clk 0:00:40]} 50. Nxf5 {[%clk 0:00:18]}  Ne8 {[%clk 0:00:41]} 51. h5 {[%clk 0:00:10]}  g6 {[%clk 0:00:41]} 52. hxg6+ {[%clk 0:00:08]}  Kxg6 {[%clk 0:00:42]} 53. Ne3 {[%clk 0:00:07]}  Nf6 {[%clk 0:00:38]} 54. Kg2 {[%clk 0:00:07]}  h5 {[%clk 0:00:39]} 55. f3 {[%clk 0:00:07]}  e4 {[%clk 0:00:38]} 56. fxe4 {[%clk 0:00:05]}  Nxe4 {[%clk 0:00:38]} 57. Kf3 {[%clk 0:00:06]}  Nd2+ {[%clk 0:00:33]} 58. Ke2 {[%clk 0:00:06]}  Nb3 {[%clk 0:00:34]} 59. Kf3 {[%clk 0:00:04]}  Kg5 {[%clk 0:00:33]} 60. Kf2 {[%clk 0:00:02]}  Nd4 {[%clk 0:00:32]} 61. Kg2 {[%clk 0:00:02]}  Kf6 {[%clk 0:00:26]} 62. Kh3 {[%clk 0:00:02]}  Ke5 {[%clk 0:00:25]} 63. Kh4 {[%clk 0:00:02]}  Ke4 {[%clk 0:00:26]} 64. Nf1 {[%clk 0:00:02]}  Kd3 {[%clk 0:00:21]} 65. Kxh5 {[%clk 0:00:02]}  Kxc4 {[%clk 0:00:22]} 66. g4 {[%clk 0:00:02]}  Kxd5 {[%clk 0:00:22]} 67. g5 {[%clk 0:00:03]}  Ne6 {[%clk 0:00:21]} 68. g6 {[%clk 0:00:03]}  c4 {[%clk 0:00:19]} 69. Ne3+ {[%clk 0:00:03]}  Kd4 {[%clk 0:00:19]} 70. Nf5+ {[%clk 0:00:03]}  Ke5 {[%clk 0:00:19]} 71. Kg4 {[%clk 0:00:03]}  c3 {[%clk 0:00:19]} 72. Ne3 {[%clk 0:00:03]}  Ke4 {[%clk 0:00:19]} 73. Nc2 {[%clk 0:00:02]}  d5 {[%clk 0:00:20]} 0-1


[Site "https://www.chess.com"]

[Event "Titled Tuesday Blitz November 15 Early 2022"]
[White "Zanette, Edgard Vinicius"]
[Black "Gabdrakhmanov, Azat"]
[WhiteFideId "2109263"]
[BlackFideId "34189197"]
[WhiteElo "2211"]
[BlackElo "2254"]
[Result "0-1"]
[Round "09"]
[TimeControl "180+1"]
[Date "2022.11.16"]
[WhiteClock "0:00:13"]
[BlackClock "0:00:20"]

1. e4 {[%clk 0:03:00]}  c5 {[%clk 0:03:00]} 2. Nc3 {[%clk 0:03:00]}  e6 {[%clk 0:03:00]} 3. f4 {[%clk 0:02:59]}  Nc6 {[%clk 0:03:00]} 4. Nf3 {[%clk 0:02:59]}  d6 {[%clk 0:03:00]} 5. Bb5 {[%clk 0:02:59]}  Ne7 {[%clk 0:02:59]} 6. O-O {[%clk 0:02:57]}  a6 {[%clk 0:03:00]} 7. Bxc6+ {[%clk 0:02:57]}  Nxc6 {[%clk 0:03:01]} 8. d3 {[%clk 0:02:54]}  Be7 {[%clk 0:03:01]} 9. Kh1 {[%clk 0:02:54]}  b5 {[%clk 0:03:01]} 10. Ne2 {[%clk 0:02:50]}  Bb7 {[%clk 0:03:01]} 11. Be3 {[%clk 0:02:49]}  d5 {[%clk 0:02:59]} 12. Ng3 {[%clk 0:02:41]}  d4 {[%clk 0:02:34]} 13. Bd2 {[%clk 0:02:34]}  Qc7 {[%clk 0:02:30]} 14. c3 {[%clk 0:02:15]}  dxc3 {[%clk 0:02:29]} 15. bxc3 {[%clk 0:02:10]}  Rd8 {[%clk 0:02:27]} 16. Qe2 {[%clk 0:02:08]}  Qd7 {[%clk 0:02:22]} 17. Ne1 {[%clk 0:02:07]}  b4 {[%clk 0:02:03]} 18. Qg4 {[%clk 0:01:46]}  g6 {[%clk 0:02:02]} 19. cxb4 {[%clk 0:01:28]}  h5 {[%clk 0:01:58]} 20. Qh3 {[%clk 0:01:25]}  cxb4 {[%clk 0:01:52]} 21. f5 {[%clk 0:01:21]}  exf5 {[%clk 0:01:46]} 22. exf5 {[%clk 0:01:11]}  Nd4 {[%clk 0:01:45]} 23. Be3 {[%clk 0:00:59]}  g5 {[%clk 0:01:16]} 24. Nxh5 {[%clk 0:00:59]}  Kf8 {[%clk 0:01:03]} 25. f6 {[%clk 0:00:53]}  Qxh3 {[%clk 0:00:57]} 26. fxe7+ {[%clk 0:00:50]}  Kxe7 {[%clk 0:00:58]} 27. Bxg5+ {[%clk 0:00:49]}  Kd7 {[%clk 0:00:48]} 28. Rxf7+ {[%clk 0:00:48]}  Kd6 {[%clk 0:00:35]} 29. Rxb7 {[%clk 0:00:40]}  Qxh5 {[%clk 0:00:33]} 30. Bf4+ {[%clk 0:00:38]}  Kc6 {[%clk 0:00:32]} 31. Rxb4 {[%clk 0:00:36]}  Qe2 {[%clk 0:00:23]} 32. Rc1+ {[%clk 0:00:36]}  Kd5 {[%clk 0:00:22]} 33. Rxd4+ {[%clk 0:00:20]}  Kxd4 {[%clk 0:00:21]} 34. Nf3+ {[%clk 0:00:18]}  Kxd3 {[%clk 0:00:20]} 35. Ne5+ {[%clk 0:00:17]}  Ke4 {[%clk 0:00:19]} 36. Bg3 {[%clk 0:00:13]}  Rd1+ {[%clk 0:00:20]} 0-1


[Site "https://www.chess.com"]

[Event "Titled Tuesday Blitz November 15 Early 2022"]
[White "Zeydan, Salih"]
[Black "Khamdamova, Afruza"]
[WhiteFideId "6361722"]
[BlackFideId "14210444"]
[WhiteElo "1988"]
[BlackElo "2018"]
[Result "0-1"]
[Round "09"]
[TimeControl "180+1"]
[Date "2022.11.16"]
[WhiteClock "0:00:29"]
[BlackClock "0:00:55"]

1. e4 {[%clk 0:02:52]}  e5 {[%clk 0:02:59]} 2. Nf3 {[%clk 0:02:49]}  Nc6 {[%clk 0:02:59]} 3. Bc4 {[%clk 0:02:46]}  Nf6 {[%clk 0:02:59]} 4. d3 {[%clk 0:02:46]}  Bc5 {[%clk 0:02:59]} 5. O-O {[%clk 0:02:46]}  O-O {[%clk 0:02:58]} 6. Re1 {[%clk 0:02:41]}  d6 {[%clk 0:02:55]} 7. Bg5 {[%clk 0:02:38]}  h6 {[%clk 0:02:54]} 8. Bh4 {[%clk 0:02:38]}  Be6 {[%clk 0:02:51]} 9. Nc3 {[%clk 0:02:35]}  Nd4 {[%clk 0:02:29]} 10. Nxd4 {[%clk 0:02:30]}  Bxd4 {[%clk 0:02:27]} 11. Qf3 {[%clk 0:02:27]}  Bxc3 {[%clk 0:02:18]} 12. bxc3 {[%clk 0:02:27]}  Bxc4 {[%clk 0:02:18]} 13. dxc4 {[%clk 0:02:22]}  g5 {[%clk 0:02:10]} 14. Bg3 {[%clk 0:02:22]}  Nd7 {[%clk 0:02:10]} 15. h4 {[%clk 0:02:21]}  gxh4 {[%clk 0:02:00]} 16. Bh2 {[%clk 0:02:07]}  Qg5 {[%clk 0:01:58]} 17. Re3 {[%clk 0:01:53]}  Kh8 {[%clk 0:01:54]} 18. Qe2 {[%clk 0:01:51]}  Rg8 {[%clk 0:01:53]} 19. g3 {[%clk 0:01:50]}  hxg3 {[%clk 0:01:50]} 20. Rxg3 {[%clk 0:01:47]}  Qh4 {[%clk 0:01:45]} 21. Rb1 {[%clk 0:01:41]}  Nc5 {[%clk 0:01:43]} 22. Re1 {[%clk 0:01:35]}  Ne6 {[%clk 0:01:42]} 23. Qf3 {[%clk 0:01:34]}  Nf4 {[%clk 0:01:37]} 24. c5 {[%clk 0:01:34]}  dxc5 {[%clk 0:01:34]} 25. Rd1 {[%clk 0:01:34]}  Rad8 {[%clk 0:01:28]} 26. Rxg8+ {[%clk 0:01:26]}  Rxg8+ {[%clk 0:01:28]} 27. Bg3 {[%clk 0:01:19]}  Qh3 {[%clk 0:01:11]} 28. c4 {[%clk 0:00:49]}  h5 {[%clk 0:01:11]} 29. Rd5 {[%clk 0:00:36]}  f6 {[%clk 0:00:59]} 30. Qh1 {[%clk 0:00:29]}  Ne2# {[%clk 0:00:55]} 0-1


[Site "https://www.chess.com"]

[Event "Titled Tuesday Blitz November 15 Early 2022"]
[White "Aaditya Dhingra"]
[Black "Stankovic, Ivan G"]
[WhiteFideId "25678191"]
[BlackFideId "902837"]
[WhiteElo "2054"]
[BlackElo "2226"]
[Result "1-0"]
[Round "10"]
[TimeControl "180+1"]
[Date "2022.11.16"]
[WhiteClock "0:01:54"]
[BlackClock "0:01:29"]

1. e4 {[%clk 0:03:00]}  c5 {[%clk 0:02:59]} 2. Nf3 {[%clk 0:03:01]}  Nc6 {[%clk 0:02:59]} 3. d4 {[%clk 0:02:59]}  cxd4 {[%clk 0:02:59]} 4. Nxd4 {[%clk 0:03:00]}  g6 {[%clk 0:02:59]} 5. c4 {[%clk 0:02:59]}  Nf6 {[%clk 0:02:55]} 6. Nc3 {[%clk 0:02:58]}  d6 {[%clk 0:02:55]} 7. Nc2 {[%clk 0:02:57]}  Bg7 {[%clk 0:02:54]} 8. Be2 {[%clk 0:02:56]}  O-O {[%clk 0:02:55]} 9. O-O {[%clk 0:02:55]}  a5 {[%clk 0:02:55]} 10. b3 {[%clk 0:02:49]}  a4 {[%clk 0:02:45]} 11. b4 {[%clk 0:02:48]}  Be6 {[%clk 0:02:36]} 12. Rb1 {[%clk 0:02:37]}  Ne5 {[%clk 0:02:34]} 13. Ne3 {[%clk 0:02:31]}  Rc8 {[%clk 0:02:18]} 14. Qxa4 {[%clk 0:02:22]}  Nxc4 {[%clk 0:02:15]} 15. Nxc4 {[%clk 0:02:09]}  Bxc4 {[%clk 0:02:16]} 16. Bxc4 {[%clk 0:02:09]}  Rxc4 {[%clk 0:02:16]} 17. Qb3 {[%clk 0:02:10]}  Nxe4 {[%clk 0:01:49]} 18. Qxc4 {[%clk 0:02:04]}  Nxc3 {[%clk 0:01:50]} 19. Rb3 {[%clk 0:02:02]}  b5 {[%clk 0:01:47]} 20. Qd3 {[%clk 0:02:01]}  Qc7 {[%clk 0:01:34]} 21. Bb2 {[%clk 0:01:58]}  Rc8 {[%clk 0:01:31]} 22. Bxc3 {[%clk 0:01:55]}  Bxc3 {[%clk 0:01:29]} 23. Rc1 {[%clk 0:01:54]} 1-0


[Site "https://www.chess.com"]

[Event "Titled Tuesday Blitz November 15 Early 2022"]
[White "Ahn, Hongjin"]
[Black "Abrahamyan, Tatev"]
[WhiteFideId "13201492"]
[BlackFideId "13301918"]
[WhiteElo "2182"]
[BlackElo "2347"]
[Result "1-0"]
[Round "10"]
[TimeControl "180+1"]
[Date "2022.11.16"]
[WhiteClock "0:00:04"]
[BlackClock "0:00:12"]

1. d4 {[%clk 0:03:00]}  Nf6 {[%clk 0:02:53]} 2. c4 {[%clk 0:03:00]}  e6 {[%clk 0:02:53]} 3. Nc3 {[%clk 0:03:00]}  Bb4 {[%clk 0:02:52]} 4. e3 {[%clk 0:03:00]}  O-O {[%clk 0:02:52]} 5. Bd2 {[%clk 0:03:01]}  c5 {[%clk 0:02:51]} 6. dxc5 {[%clk 0:02:59]}  Na6 {[%clk 0:02:50]} 7. Nf3 {[%clk 0:02:55]}  Nxc5 {[%clk 0:02:50]} 8. Qc2 {[%clk 0:02:51]}  b6 {[%clk 0:02:47]} 9. a3 {[%clk 0:02:49]}  Bxc3 {[%clk 0:02:47]} 10. Bxc3 {[%clk 0:02:50]}  Nfe4 {[%clk 0:02:47]} 11. Bd4 {[%clk 0:02:44]}  Bb7 {[%clk 0:02:46]} 12. b4 {[%clk 0:02:42]}  Na6 {[%clk 0:02:46]} 13. Bd3 {[%clk 0:02:40]}  f5 {[%clk 0:02:43]} 14. Rd1 {[%clk 0:02:37]}  Rc8 {[%clk 0:02:40]} 15. Ba1 {[%clk 0:02:31]}  Qe8 {[%clk 0:02:27]} 16. O-O {[%clk 0:02:00]}  Qh5 {[%clk 0:02:22]} 17. Qb2 {[%clk 0:01:55]}  Rf6 {[%clk 0:02:19]} 18. Be2 {[%clk 0:01:40]}  Qe8 {[%clk 0:01:44]} 19. Ne5 {[%clk 0:01:07]}  Nb8 {[%clk 0:01:38]} 20. f3 {[%clk 0:00:49]}  Ng5 {[%clk 0:01:29]} 21. b5 {[%clk 0:00:40]}  Qe7 {[%clk 0:01:14]} 22. Qb4 {[%clk 0:00:25]}  Rc5 {[%clk 0:01:02]} 23. Nd3 {[%clk 0:00:17]}  Rg6 {[%clk 0:01:01]} 24. Nxc5 {[%clk 0:00:14]}  Nh3+ {[%clk 0:00:55]} 25. Kh1 {[%clk 0:00:14]}  Qg5 {[%clk 0:00:55]} 26. g3 {[%clk 0:00:05]}  Qxe3 {[%clk 0:00:48]} 27. Qd2 {[%clk 0:00:02]}  Qxc5 {[%clk 0:00:46]} 28. Qd4 {[%clk 0:00:01]}  Qe7 {[%clk 0:00:36]} 29. Qd6 {[%clk 0:00:02]}  Qe8 {[%clk 0:00:36]} 30. Qc7 {[%clk 0:00:02]}  Qc8 {[%clk 0:00:23]} 31. Be5 {[%clk 0:00:02]}  Qxc7 {[%clk 0:00:16]} 32. Bxc7 {[%clk 0:00:03]}  f4 {[%clk 0:00:14]} 33. Bxb8 {[%clk 0:00:03]}  fxg3 {[%clk 0:00:12]} 34. hxg3 {[%clk 0:00:04]}  Ng5 {[%clk 0:00:12]} 35. Rxd7 {[%clk 0:00:04]} 1-0


[Site "https://www.chess.com"]

[Event "Titled Tuesday Blitz November 15 Early 2022"]
[White "Alekseenko, Kirill"]
[Black "Sharifov, Mekhriddin"]
[WhiteFideId "4135539"]
[BlackFideId "14701545"]
[WhiteElo "2682"]
[BlackElo "2109"]
[Result "1/2-1/2"]
[Round "10"]
[TimeControl "180+1"]
[Date "2022.11.15"]
[WhiteClock "0:02:02"]
[BlackClock "0:00:54"]

1. d4 {[%clk 0:03:00]}  Nf6 {[%clk 0:03:00]} 2. Nc3 {[%clk 0:03:01]}  d5 {[%clk 0:03:00]} 3. Bf4 {[%clk 0:03:02]}  Bf5 {[%clk 0:03:00]} 4. e3 {[%clk 0:03:01]}  e6 {[%clk 0:03:00]} 5. f3 {[%clk 0:03:02]}  a6 {[%clk 0:02:59]} 6. g4 {[%clk 0:03:02]}  Bg6 {[%clk 0:03:00]} 7. h4 {[%clk 0:03:02]}  h6 {[%clk 0:03:00]} 8. Bd3 {[%clk 0:03:02]}  Bxd3 {[%clk 0:03:01]} 9. Qxd3 {[%clk 0:03:03]}  c5 {[%clk 0:03:02]} 10. Nge2 {[%clk 0:03:03]}  Nc6 {[%clk 0:03:02]} 11. a3 {[%clk 0:03:03]}  Bd6 {[%clk 0:02:49]} 12. O-O-O {[%clk 0:03:01]}  cxd4 {[%clk 0:02:34]} 13. exd4 {[%clk 0:03:00]}  Qc7 {[%clk 0:02:32]} 14. Bxd6 {[%clk 0:03:00]}  Qxd6 {[%clk 0:02:33]} 15. g5 {[%clk 0:02:54]}  Nh5 {[%clk 0:02:20]} 16. Na4 {[%clk 0:02:46]}  O-O-O {[%clk 0:02:13]} 17. Nc5 {[%clk 0:02:46]}  Nf4 {[%clk 0:02:00]} 18. Nxf4 {[%clk 0:02:45]}  Qxf4+ {[%clk 0:02:00]} 19. Kb1 {[%clk 0:02:45]}  hxg5 {[%clk 0:01:57]} 20. hxg5 {[%clk 0:02:44]}  Rxh1 {[%clk 0:01:55]} 21. Rxh1 {[%clk 0:02:45]}  Qxg5 {[%clk 0:01:53]} 22. Rh7 {[%clk 0:02:33]}  Qg1+ {[%clk 0:01:45]} 23. Ka2 {[%clk 0:02:33]}  Qxd4 {[%clk 0:01:46]} 24. Qxd4 {[%clk 0:02:34]}  Nxd4 {[%clk 0:01:47]} 25. Rxg7 {[%clk 0:02:35]}  Rf8 {[%clk 0:01:43]} 26. f4 {[%clk 0:02:14]}  Nxc2 {[%clk 0:01:43]} 27. Rg3 {[%clk 0:02:14]}  Nd4 {[%clk 0:01:41]} 28. Rc3 {[%clk 0:02:14]}  Nc6 {[%clk 0:01:40]} 29. Nxa6 {[%clk 0:02:15]}  bxa6 {[%clk 0:01:37]} 30. Rxc6+ {[%clk 0:02:14]}  Kb7 {[%clk 0:01:37]} 31. Rd6 {[%clk 0:02:15]}  Rc8 {[%clk 0:01:29]} 32. b4 {[%clk 0:02:11]}  Rc6 {[%clk 0:01:28]} 33. Rd7+ {[%clk 0:02:10]}  Rc7 {[%clk 0:01:28]} 34. Rd6 {[%clk 0:02:10]}  Rc4 {[%clk 0:01:11]} 35. Rd7+ {[%clk 0:02:03]}  Rc7 {[%clk 0:01:01]} 36. Rd8 {[%clk 0:02:04]}  Rc8 {[%clk 0:00:58]} 37. Rd6 {[%clk 0:02:02]}  Rc6 {[%clk 0:00:54]} 38. Rd7+ {[%clk 0:02:02]}  Rc7 {[%clk 0:00:54]} 1/2-1/2


[Site "https://www.chess.com"]